Cogmind - Beta 17 @@@ ROGUE MODE // 2026.08.03 @ 22:45:04 Player: Lazz Result: Escaped! Performance ------------- Evolutions (9) 4500 Regions Visited (16) 3200 Robots Destroyed (239) 1195 Value Destroyed (12541) 12541 Prototype IDs (15) 300 Alien Tech Used (0) 0 Bonus (9865) 9865 TOTAL SCORE: 31601 Bonus ------- High Alert Combat Kills 1251 Follower Combat Kills 1790 Entered Garrisons 400 Used RIF Installer 1000 Met R17 at Cetus 500 Met R17 at Research 2000 Win 3000 Friendly Fire -76 Cogmind --------- Core Integrity 1526/1600 Matter 75/300 Energy 530/640 System Corruption 14% Temperature Cool (24) Movement Treading (173) Location To Epsilon Eridani Parts ------- > --- POWER (3) -------- Particle Reactor Micro Antimatter Reactor Quantum Reactor > --- PROPULSION (6) --- Improved Heavy Siege Treads Improved Heavy Siege Treads Centrium Heavy Treads > --- UTILITY (12) ----- Advanced Heat Sink Advanced Heat Sink Large Storage Unit Structural Scanner Advanced Sensor Array Advanced Signal Interpreter Advanced Transmission Jammer Centrium Light Armor Plating Advanced Hardlight Generator Improved Point Defense System Hacking Suite System Shield > --- WEAPON (4) ------- Enhanced Nova Cannon Enhanced Hardcell Cannon (fused) Enhanced Hardcell Cannon Improved Plasma Cutter > --- INVENTORY (15) --- Light Particle Reactor Biometal Medium Treads Centrium Light Armor Plating Centrium Light Armor Plating Improved Force Field Long-range Tractor Beam Compact HERF Cannon Heavy Neutron Cannon Enhanced Hardcell Cannon Fusion Bomb Launcher Advanced Remote Datajack Peak State ------------ > --- POWER ------------ Particle Reactor Light Particle Reactor Micro Antimatter Reactor > --- PROPULSION ------- Advanced Medium Treads Biometal Medium Treads Improved Heavy Siege Treads Improved Heavy Siege Treads > --- UTILITY ---------- Advanced Cryofiber Web Advanced Heat Sink Large Storage Unit Advanced Signal Interpreter Advanced Transmission Jammer Centrium Light Armor Plating Centrium Light Armor Plating Focal Shield Advanced Hardlight Generator Improved Point Defense System Hacking Suite System Shield > --- WEAPON ----------- Heavy Neutron Cannon Enhanced Nova Cannon Enhanced Hardcell Cannon Enhanced Hardcell Cannon > --- INVENTORY -------- Centrium Heavy Treads Advanced Heat Sink Advanced Heat Sink Structural Scanner Advanced Sensor Array Centrium Light Armor Plating Centrium Light Armor Plating Improved Force Field Long-range Tractor Beam Compact HERF Cannon Enhanced Hardcell Cannon Fusion Bomb Launcher Advanced Remote Datajack Improved Plasma Cutter [Rating: 184] Favorites ----------- Power Light Particle Reactor Engine Improved Deuterium Engine Power Core Light Fission Core Reactor Light Particle Reactor Propulsion Shield Leg Treads Advanced Medium Treads Leg Shield Leg Wheel Armored Huge Wheel Utility Advanced Heat Sink Device Advanced Heat Sink Storage Large Storage Unit Processor Improved Signal Interpreter Hackware System Shield Protection Centrium Light Armor Plating Weapon Enhanced Hardcell Cannon Energy Gun Wave Gun Energy Cannon Heavy Neutron Cannon Ballistic Gun Coil Gun Ballistic Cannon Enhanced Hardcell Cannon Launcher Fusion Bomb Launcher Special Weapon Improved Remote Datajack Slashing Weapon Mining Claw Piercing Weapon Heavy Pick Special Melee Weapon Improved Datajack Build | -11 -10 -9 -9 -8 -8 -8 -7 -7 -6 -5 -5 -5 -4 -3 -2 -1 ------- Run | Yrd Mat Mat Sto Mat Gar Mat Fac Gar Fac Fac Ext Cet Fac Res Res Acc Slots Evolved 18 | . . 2 . 2 . . 2 . 2 2 . . 2 2 2 2 Power 2 | . . . . . . . . . 1 . . . . . 1 . Propulsion 4 | . . 1 . . . . . . 1 1 . . 1 . . . Utility 10 | . . 1 . 2 . . 2 . . 1 . . . 2 . 2 Weapon 2 | . . . . . . . . . . . . . 1 . 1 . Parts Attached 220 | 7 1 . 8 11 16 13 5 21 5 19 18 13 33 6 23 21 Power 31 | 1 . . 1 . 2 1 . 3 2 2 3 1 4 4 4 3 Engine 10 | 1 . . . . 1 1 . 1 1 1 3 . 1 . . . Core 6 | . . . . . 1 . . 1 1 1 . 1 1 . . . Reactor 15 | . . . 1 . . . . 1 . . . . 2 4 4 3 Propulsion 59 | 2 . . 3 4 5 1 2 8 2 3 6 4 9 1 6 3 Treads 21 | . . . 2 4 2 . . . . 1 . 4 1 . 4 3 Leg 36 | 2 . . . . 3 1 2 7 2 2 6 . 8 1 2 . Wheel 2 | . . . 1 . . . . 1 . . . . . . . . Hover . | . . . . . . . . . . . . . . . . . Flight . | . . . . . . . . . . . . . . . . . Utility 86 | 2 1 . 1 3 6 7 3 7 1 11 7 4 14 1 8 10 Device 41 | 1 . . . 1 4 1 2 1 . 4 5 . 10 . 3 9 Storage 4 | 1 1 . . . . . . . . . . . 1 . . 1 Processor 9 | . . . 1 1 1 1 . 1 . . . 1 2 . 1 . Hackware 20 | . . . . . 1 5 1 3 1 6 1 1 . . 1 . Protection 12 | . . . . 1 . . . 2 . 1 1 2 1 1 3 . Artifact . | . . . . . . . . . . . . . . . . . Weapon 44 | 2 . . 3 4 3 4 . 3 . 3 2 4 6 . 5 5 Energy Gun 19 | 2 . . 1 2 3 . . 2 . . 2 4 3 . . . Energy Cannon 8 | . . . . . . 1 . . . 1 . . 2 . 3 1 Ballistic Gun 2 | . . . 1 . . . . . . . . . 1 . . . Ballistic Cannon 7 | . . . . 1 . . . 1 . 1 . . . . 1 3 Launcher 3 | . . . . 1 . 1 . . . . . . . . 1 . Special Weapon 2 | . . . . . . . . . . 1 . . . . . 1 Impact Weapon . | . . . . . . . . . . . . . . . . . Slashing Weapon 1 | . . . 1 . . . . . . . . . . . . . Piercing Weapon 1 | . . . . . . 1 . . . . . . . . . . Special Melee Weapon 1 | . . . . . . 1 . . . . . . . . . . Unidentified Prototypes 7 | . . . 1 1 . 1 . . . 1 . . . 1 1 1 Parts Lost 61 | . . . 1 1 13 1 2 16 5 1 2 2 9 . 4 4 Power 9 | . . . . . 2 1 . 3 1 . . . 2 . . . Propulsion 20 | . . . 1 . 5 . 1 6 2 . . . 1 . 3 1 Utility 24 | . . . . 1 4 . 1 3 1 1 2 2 6 . 1 2 Weapon 8 | . . . . . 2 . . 4 1 . . . . . . 1 Highest Loss Streak 9 | . . . 1 1 5 1 2 9 5 1 1 1 2 . 2 1 To Critical Strikes . | . . . . . . . . . . . . . . . . . Average Backups 10 | 1 4 5 7 12 14 14 12 13 14 10 5 4 5 12 13 12 Power . | . . . . . . . 1 . . . . . . 2 1 . Propulsion 1 | . 1 1 . 2 1 . . 1 . . . . 1 3 1 1 Utility 5 | . 1 1 2 4 9 11 7 7 11 8 3 1 1 2 4 5 Weapon 2 | 1 2 3 4 5 3 3 4 2 1 2 1 1 . 2 3 2 Tool/Special . | . . . . . . . . . . . . . . . . . Unused Backups 16 | . . . . 1 4 1 . 3 1 1 . 2 . . . 3 Power . | . . . . . . . . . . . . . . . . . Propulsion 2 | . . . . . . . . 2 . . . . . . . . Utility 9 | . . . . . 3 1 . 1 . 1 . 2 . . . 1 Weapon 4 | . . . . 1 1 . . . 1 . . . . . . 1 Tool/Special 1 | . . . . . . . . . . . . . . . . 1 Average Slot Usage (%) 92 | . 100 77 92 99 89 99 91 92 92 83 98 87 83 95 96 91 Engine 2 | . 14 11 4 . 2 1 7 4 9 5 6 10 2 . . . Core 1 | . . . . . 1 7 . 1 3 4 4 . 4 . . . Reactor 4 | . . . 6 9 2 . . . . . . . 3 9 12 12 Treads 9 | . . . 17 26 17 . . . . 1 5 15 10 . 6 15 Leg 11 | . 28 22 4 . 5 27 21 15 12 14 23 3 8 28 16 . Device 16 | . 14 11 11 15 14 4 13 8 6 4 14 15 18 27 19 26 Storage 5 | . 14 11 11 9 9 9 7 7 6 3 . . 1 4 4 4 Processor 8 | . . . 6 17 12 17 7 15 13 11 9 4 5 . 3 4 Hackware 8 | . . . . . 1 13 17 17 13 14 16 13 6 4 5 8 Protection 4 | . . . . 2 4 . . 2 5 7 1 8 3 4 7 5 Energy Gun 5 | . 28 22 13 8 14 2 . 3 6 3 1 9 8 4 1 . Energy Cannon 4 | . . . . . . 2 7 3 . 1 5 . 6 9 7 7 Ballistic Cannon 3 | . . . . 8 1 . . 3 . 3 2 . . . 4 6 Peak Build Rating 184 | 7 7 8 18 32 39 39 47 52 57 70 80 114 134 133 169 184 Average Rating 88 | 5 7 7 13 28 30 37 43 45 55 57 76 106 117 123 155 175 On Entrance 56 | . 7 7 8 17 31 39 39 45 52 37 70 78 112 117 133 166 Avg Prop Armor Cover (%) 7 | . . . 21 19 21 . . 3 7 8 7 5 . . 5 . Naked Turns . | . . . . . . . . . . . . . . . . . Heaviest Build 139 | 15 30 30 39 47 47 36 46 52 53 65 47 51 86 92 128 139 Greatest Support 240 | 20 20 20 40 62 62 43 43 43 32 70 83 160 240 153 215 230 Greatest Overweight (x) 14 | . 1 1 3 3 1 . 1 14 1 2 . . 2 . 1 . Average Overweight (x) . | . . 1 2 . . . . 1 1 . . . . . . . Largest Inventory Capacity 15 | 8 15 15 15 15 15 15 15 15 15 15 5 5 15 15 15 15 Average Capacity 12 | 7 14 15 15 15 15 15 15 15 15 11 5 5 8 15 15 15 Most Carried 15 | 4 5 6 9 15 15 15 15 15 15 15 5 5 15 15 15 15 Average Carried 11 | 1 4 5 7 12 14 14 12 13 14 10 5 4 7 14 14 13 Final Capacity 15 | 8 15 15 15 15 15 15 15 15 15 5 5 5 15 15 15 15 Final Carried 15 | 4 5 6 9 15 15 15 13 15 14 5 5 5 15 15 14 11 Class Distribution -------------------- 32% | Scavenger-Tank 20% | Bothacker-Mutant 16% | Scavenger-Mutant 14% | Mutant 9% | Commander-Mutant 3% | Scavenger-Gunner 3% | Hacker-Tank Dominant Class ---------------- Mutant | -10/Materials Mutant | -9/Materials Commander-Mutant | -9/Storage Commander-Mutant | -8/Materials Scavenger-Mutant | -8/Garrison Bothacker-Mutant | -8/Materials Scavenger-Mutant | -7/Factory Bothacker-Mutant | -7/Garrison Bothacker-Mutant | -6/Factory Bothacker-Mutant | -5/Factory Commander-Mutant | -5/Extension Scavenger-Mutant | -5/Cetus Scavenger-Tank | -4/Factory Scavenger-Tank | -3/Research Scavenger-Tank | -2/Research Scavenger-Tank | -1/Access Resources | -11 -10 -9 -9 -8 -8 -8 -7 -7 -6 -5 -5 -5 -4 -3 -2 -1 ----------- Run | Yrd Mat Mat Sto Mat Gar Mat Fac Gar Fac Fac Ext Cet Fac Res Res Acc Matter Collected 5964 | 270 10 . 135 421 513 209 65 543 43 347 456 220 433 70 533 1696 Remotely 1057 | . . . . . . . . . . . . . . . . 1057 Salvage Created 9564 | 169 81 216 38 660 874 415 155 725 127 148 555 399 1731 319 957 1995 Parts 449 | 12 3 7 3 32 50 20 5 24 4 6 14 10 64 26 68 101 Haulers Intercepted 3 | . . . . 2 . 1 . . . . . . . . . . Recyclers Shooed 7 | 1 . . . 1 . . . . . . 1 . . 2 . 2 Parts Field Recycled . | . . . . . . . . . . . . . . . . . Retrieved Matter . | . . . . . . . . . . . . . . . . . Parts Self-Destructed . | . . . . . . . . . . . . . . . . . Prevented . | . . . . . . . . . . . . . . . . . Parts Restored . | . . . . . . . . . . . . . . . . . Kills | -11 -10 -9 -9 -8 -8 -8 -7 -7 -6 -5 -5 -5 -4 -3 -2 -1 ------- Run | Yrd Mat Mat Sto Mat Gar Mat Fac Gar Fac Fac Ext Cet Fac Res Res Acc Combat Hostiles Destroyed 189 | . 2 2 1 18 32 4 3 19 2 2 8 5 32 4 19 36 Guns 48 | . 2 2 1 7 13 . . 2 2 . 1 2 14 2 . . Cannons 98 | . . . . 10 6 1 2 10 . 2 6 1 14 2 10 34 AOE 30 | . . . . 1 12 3 . 5 . . . . . . 8 1 Classes Destroyed 17 | 2 1 2 2 3 2 2 . 1 . . . . 1 1 . . Worker 9 | . . 1 . . . . . . . . . . . . 2 6 Builder 8 | . . . . . . . . . . . . . 1 1 . 6 Tunneler 8 | 5 . . . . . . . . . 1 . . . 1 1 . Hauler 3 | . . . . 2 . 1 . . . . . . . . . . Recycler 7 | 1 . 1 . . . 3 . . . . . . 1 1 . . Mechanic 4 | . . . . 1 . 1 . . 1 1 . . . . . . Operator 3 | . . . . . . . . . . . . . . 1 2 . Watcher 7 | . . . 1 . . . . . . . 1 . 1 . 1 3 Swarmer 60 | . . . 1 4 14 . . 9 1 . 1 . 14 3 9 4 Grunt 41 | . 2 . . 9 12 1 3 5 . . 3 . 4 . . 2 Brawler 2 | . . . . . . 1 . . . . . . 1 . . . Duelist 2 | . . . . . . . . 1 . . . . 1 . . . Protector 1 | . . . . . . 1 . . . . . . . . . . Sentry 23 | . . 2 . 4 3 1 . 1 1 . 4 . 4 . . 3 Specialist 4 | . . . . . 2 . . 2 . . . . . . . . Hunter 17 | . . . . 1 . . . . . . . . 4 . 2 10 Programmer 34 | . . . . . 1 . . 1 . 2 . . 4 1 8 17 Cetus Guard 5 | . . . . . . . . . . . . 5 . . . . Guerrilla 1 | . . . . . . . . . . . . 1 . . . . Best Kill Streak 11 | 4 2 2 1 10 7 4 1 3 1 2 3 4 5 5 11 7 Combat Bots Only 10 | . 2 1 1 10 7 3 1 3 1 2 2 4 5 4 9 6 Max Kills in Single Turn 7 | 1 1 1 1 2 3 1 1 3 1 1 1 2 2 2 5 7 Gunslinging 1 | . . . . . 1 . . . . . . . . . . . Exploded 5 | . . . . 1 3 1 . 3 . . . . . . 5 1 Melee . | . . . . . . . . . . . . . . . . . Uniques/NPCs Destroyed . | . . . . . . . . . . . . . . . . . Combat | -11 -10 -9 -9 -8 -8 -8 -7 -7 -6 -5 -5 -5 -4 -3 -2 -1 -------- Run | Yrd Mat Mat Sto Mat Gar Mat Fac Gar Fac Fac Ext Cet Fac Res Res Acc Hostile Shots Fired 1716 | . 7 24 16 79 170 18 22 220 59 36 82 95 459 28 124 277 Missed 477 | . 2 7 6 32 34 5 9 66 18 18 25 27 133 5 28 62 Deflected 5 | . . . . . . . . . . . . . 4 . 1 . Hits 1239 | . 5 17 10 47 136 13 13 154 41 18 57 68 326 23 96 215 Melee 1 | . . . . . . . . . . . . . 1 . . . Projectile 1238 | . 5 17 10 47 136 13 13 154 41 18 57 68 325 23 96 215 AOE 5 | . . . . . . . . . 1 2 . . 1 . . 1 Critical Strikes 58 | . . . 1 2 2 1 1 1 3 2 6 8 12 . 10 9 Part Disruptions 3 | . . . . . . . . . . . . . . . 1 2 Damage Taken 20148 | . 52 250 117 585 1888 239 188 2027 690 451 1250 1869 4292 331 1946 3973 Core 1786 | . 11 54 . 25 354 53 25 312 154 61 153 118 364 . 28 74 Absorbed by Shields 2338 | . . . . . . . 44 17 . . . . 669 144 328 1136 Reduced by Siege Mode 346 | . . . . . . . . . . . . 37 96 . 38 175 Redirected to Shielding 52 | . . . . . . . . . . . . . 9 14 29 . Ignored by Resistances 564 | . . . . . 18 . . 29 . . . . 224 33 . 260 Core Remaining (%) 78 | 100 95 . 86 . . 21 . 51 81 . . 66 68 100 98 95 Volleys Fired 659 | 12 8 12 12 50 92 12 13 53 11 33 48 30 101 30 42 100 Largest 4 | 2 2 2 2 2 2 1 1 2 1 2 2 2 3 3 4 4 Hottest 346 | 100 100 100 100 93 130 75 75 175 81 128 146 160 284 284 306 346 Shots Fired 1267 | 24 16 24 14 94 143 12 13 85 11 42 82 58 209 49 113 278 Gun 487 | 24 16 24 14 48 115 . . 17 11 6 17 46 112 26 11 . Cannon 736 | . . . . 44 13 9 13 66 . 23 60 10 97 23 100 278 Launcher 24 | . . . . 2 15 3 . 2 . . . . . . 2 . Special 20 | . . . . . . . . . . 13 5 2 . . . . Kinetic 299 | . . . 10 44 13 . . 35 . 13 17 . 7 . 26 134 Thermal 839 | 24 16 24 4 48 115 9 13 48 11 16 60 56 196 49 38 112 Explosive 24 | . . . . 2 15 3 . 2 . . . . . . 2 . Electromagnetic 85 | . . . . . . . . . . . . . 6 . 47 32 Robot Hit Streak 20 | 6 7 4 2 16 16 11 6 10 6 5 14 15 16 6 13 20 Robot Miss Streak 6 | 2 1 2 2 6 5 2 1 3 3 2 4 5 5 2 6 3 Penetration Max 1 | . . . . . . . . . . . . . . . 1 . Secondary Targets 7 | . . . . . 4 . . . . . . 2 1 . . . Max Gunslinging Chain 1 | . . . . . 1 . . . . . . 1 1 . . . Shots Hit Robots 844 | 15 12 15 8 68 80 16 15 75 14 25 50 49 134 25 73 170 Core Hits 417 | 6 5 8 2 68 57 12 3 32 5 5 19 16 54 14 36 75 Critical Kills 11 | . . . . . . . 1 . . . 1 . 1 . 7 1 Critical Parts Destroyed 11 | . . . . . . . . . . . . . . . 7 4 Critical Strikes 54 | 2 2 1 . 2 5 . 1 1 . 2 5 . 6 . 15 12 Burn 19 | 2 2 1 . 2 5 . . . . 1 2 . 4 . . . Meltdown 3 | . . . . . . . 1 . . . 1 . 1 . . . Destroy 20 | . . . . . . . . . . . . . 1 . 14 5 Blast 10 | . . . . . . . . 1 . 1 2 . . . . 6 Corrupt 2 | . . . . . . . . . . . . . . . 1 1 Melee Attacks 57 | . . . 5 2 2 14 5 22 7 . . . . . . . Impact . | . . . . . . . . . . . . . . . . . Slashing 9 | . . . 5 2 2 . . . . . . . . . . . Piercing 18 | . . . . . . 4 . 14 . . . . . . . . Sneak Attacks 11 | . . . . 1 . 4 . . 6 . . . . . . . Combat Hostiles . | . . . . . . . . . . . . . . . . . Follow-up Attacks . | . . . . . . . . . . . . . . . . . Damage Inflicted 27992 | 188 146 199 119 1880 2491 895 335 2537 173 478 1444 1441 4119 833 3206 7508 Guns 6806 | 188 146 199 119 560 1270 . . 349 173 117 203 1172 1810 310 190 . Cannons 16362 | . . . . 944 242 102 335 1267 . 361 1241 269 2309 493 1741 7058 Explosions 4043 | . . . . 325 979 545 . 469 . . . . . . 1275 450 Melee 751 | . . . . 51 . 248 . 452 . . . . . . . . Ramming 30 | . . . . . . . . . . . . . . 30 . . Kinetic 6241 | . . . 95 944 242 . . 636 . 194 409 . 152 . 408 3161 Thermal 16369 | 188 146 199 24 560 1270 102 335 980 173 284 1035 1441 3945 803 1208 3676 Explosive 3272 | . . . . 325 979 545 . 469 . . . . . . 954 . Electromagnetic 1329 | . . . . . . . . . . . . . 22 . 636 671 Impact . | . . . . . . . . . . . . . . . . . Slashing 51 | . . . . 51 . . . . . . . . . . . . Piercing 700 | . . . . . . 248 . 452 . . . . . . . . Highest Corruption 16 | . . . . . . . . . . 6 6 6 7 1 16 14 Average Corruption 7 | . . . . . . . . . . 5 6 6 5 1 11 9 Corruption Purged 6 | . . . . . . . . . . . . . . . 6 . Corruption Blocked . | . . . . . . . . . . . . . . . . . Effects 203 | . . . . . . . . . . 8 30 16 26 . 40 83 Message Errors 47 | . . . . . . . . . . 1 5 5 5 . 10 21 Matter Fused 40 | . . . . . . . . . . 3 8 4 2 . 10 13 Heat Flow Errors 19 | . . . . . . . . . . . 3 2 1 . 5 8 Energy Discharges 28 | . . . . . . . . . . 2 3 3 7 . 2 11 Parts Rejected 2 | . . . . . . . . . . . . . 1 . . 1 Parts Fused 3 | . . . . . . . . . . . 1 . 1 . . 1 Data Loss (minor) 19 | . . . . . . . . . . . 4 . 4 . 3 8 Data Loss (major) 11 | . . . . . . . . . . 1 4 . 2 . 1 3 Misfires 15 | . . . . . . . . . . . 1 . 1 . 5 8 Alerts 8 | . . . . . . . . . . 1 . 2 . . 2 3 Misdirections 2 | . . . . . . . . . . . . . . . . 2 Weapon Failures 9 | . . . . . . . . . . . 1 . 2 . 2 4 Overload Shots . | . . . . . . . . . . . . . . . . . Overflow Damage 841 | . . . . 22 68 42 . 91 . 33 25 . 26 13 247 274 Projectiles 467 | . . . . 2 . . . 32 . 33 25 . 26 12 99 238 Explosions 336 | . . . . 20 68 5 . 59 . . . . . . 148 36 Melee 38 | . . . . . . 37 . . . . . . . 1 . . Knockbacks 69 | . . . . 17 8 . . 7 . 1 2 . . . 4 30 Impact . | . . . . . . . . . . . . . . . . . Kinetic 64 | . . . . 17 8 . . 7 . 1 2 . . . 4 25 Secondary 5 | . . . . . . . . . . . . . . . . 5 Self-Inflicted Damage 493 | . . . . . 68 . . 81 . . . . . . 140 204 Shots 10 | . . . . . 3 . . 2 . . . . . . 3 2 Rammed . | . . . . . . . . . . . . . . . . . Targets Rammed 2 | . . . . . . . . . . . . . . 2 . . Kicked 2 | . . . . . . . . . . . . . . 2 . . Crushed . | . . . . . . . . . . . . . . . . . Highest Temperature 680 | 273 196 190 30 99 321 78 153 432 154 360 231 256 680 84 402 406 Average Temperature 113 | 111 96 80 17 29 77 27 69 88 70 115 39 127 198 24 129 102 Received Heat Transfer 2584 | . 30 81 18 225 666 135 102 339 54 33 219 234 391 8 12 37 Effects 36 | . . . . . . . . 1 . 1 . . 26 . 6 2 Shutdowns 17 | . . . . . . . . . . 1 . . 14 . 2 . Energy Bleed 6 | . . . . . . . . . . . . . 5 . 1 . Interference 3 | . . . . . . . . . . . . . . . 3 . Matter Decay 2 | . . . . . . . . 1 . . . . 1 . . . Short Circuit 6 | . . . . . . . . . . . . . 4 . . 2 Damage (minor) 2 | . . . . . . . . . . . . . 2 . . . Siege Activations 24 | . . . . . . . . . . . . 1 7 . 2 14 Total Turns 482 | . . . . . . . . . . . . 45 105 . 65 267 Longest Duration 59 | . . . . . . . . . . . . 45 39 . 39 59 Martial Activations . | . . . . . . . . . . . . . . . . . Shielding Activations 8 | . . . . . . . . . . . . . 4 1 3 . Total Turns 178 | . . . . . . . . . . . . . 100 37 41 . Longest Duration 37 | . . . . . . . . . . . . . 28 37 17 . Robots Disrupted 1 | . . . . . . . . . . . . . 1 . . . Combat Hostiles 1 | . . . . . . . . . . . . . 1 . . . Robots Corrupted 3 | . . . . . . . . . . . . . . . 2 1 Combat Hostiles 2 | . . . . . . . . . . . . . . . 1 1 Parts Fried 3 | . . . . . . . . . . . . . . . 2 1 Impact Corruptions 1 | . . . . . . . . . . . . . . 1 . . Robots Melted 12 | 1 . . . . 1 . 1 2 . . 1 2 4 . . . Combat Hostiles 11 | . . . . . 1 . 1 2 . . 1 2 4 . . . Parts Melted 59 | 3 1 3 1 1 9 . 1 5 1 2 7 4 17 1 1 2 Heat Transferred 19879 | 703 592 666 74 1258 2354 148 444 1406 259 444 1628 1887 5567 1052 359 1038 Parts Sabotaged . | . . . . . . . . . . . . . . . . . Parts Stolen . | . . . . . . . . . . . . . . . . . Parts Stripped . | . . . . . . . . . . . . . . . . . Power Chain Reactions 4 | . . . . . . . . . . . . . . . 1 3 Alert | -11 -10 -9 -9 -8 -8 -8 -7 -7 -6 -5 -5 -5 -4 -3 -2 -1 ------- Run | Yrd Mat Mat Sto Mat Gar Mat Fac Gar Fac Fac Ext Cet Fac Res Res Acc Maximum Alert Level 4 | . . . . 1 4 3 1 4 2 1 1 1 2 2 2 3 Low Security (%) 41 | 100 100 100 100 70 3 . . 3 . 94 87 93 81 19 36 22 Level 1 24 | . . . . 29 7 . 100 16 . 5 12 6 10 80 61 43 Level 2 14 | . . . . . 10 96 . 25 100 . . . 7 . 2 13 Level 3 14 | . . . . . 40 3 . 49 . . . . . . . 20 Level 4 5 | . . . . . 38 . . 4 . . . . . . . . Level 5 . | . . . . . . . . . . . . . . . . . High Security . | . . . . . . . . . . . . . . . . . Max Security . | . . . . . . . . . . . . . . . . . Peak Influence 1436 | 20 55 54 150 300 1436 700 295 1107 614 212 312 207 518 406 408 1000 Initial 700 | . 3 14 16 37 192 700 293 174 581 212 . 165 25 192 228 224 Average 382 | 4 10 29 45 89 940 614 270 695 563 74 76 119 105 270 262 427 Influence Increases 9332 | 30 88 85 450 606 1394 309 186 1213 143 188 868 202 931 428 713 1498 Destroy 0b10 Robot/C 4800 | . 40 40 200 400 680 140 140 540 80 100 460 160 640 80 380 720 Destroy 0b10 Robot/NC 325 | 30 . 10 10 25 . 45 . 10 10 10 25 10 15 20 30 75 Destroy Leader 818 | . 20 20 42 108 20 36 20 30 20 40 52 . 122 20 72 196 Allied During Kill 629 | . . . 118 21 5 55 13 81 33 5 274 24 . . . . Successful Hack 200 | . 13 . 19 21 34 . 12 14 . . 28 . 17 30 . 12 Disable Machine 360 | . . . 45 15 . 15 . . . 15 15 . 15 15 105 120 Anti-Garrison Action 1100 | . . . . . 450 . . 500 . . . . . 150 . . Destroy Structure 710 | . . . 1 16 100 18 1 38 . 18 14 8 62 8 111 315 Partial Spotted 45 | . . . . . . . . . . . . . . 15 . 30 Lose Combat Pursuer 345 | . 15 15 15 . 105 . . . . . . . 60 90 15 30 Influence Decreases 8334 | 25 58 81 399 400 254 1100 582 355 816 622 572 453 610 388 744 875 Entered New Map 2768 | . 2 21 23 53 104 736 352 75 526 222 . 131 20 174 178 151 Time Decay 3779 | 25 56 60 178 218 . 294 110 . 160 309 358 222 365 214 526 684 Lost Part 593 | . . . 8 10 130 10 20 160 50 10 20 20 75 . 40 40 Lost Ally 867 | . . . 40 92 20 60 100 120 80 81 194 80 . . . . Purge Threat 327 | . . . 150 27 . . . . . . . . 150 . . . Squads Dispatched 45 | . 2 . . 3 . 2 3 . 2 3 3 . 9 4 4 10 Investigation 7 | . 1 . . 1 . . 2 . . . 1 . . 2 . . Extermination 16 | . . . . . . . . . 1 2 . . 3 . 3 7 Reinforcement 13 | . 1 . . 1 . 1 1 . 1 1 2 . 2 2 1 . Assault 1 | . . . . . . 1 . . . . . . . . . . Garrison 8 | . . . . 1 . . . . . . . . 4 . . 3 Intercept . | . . . . . . . . . . . . . . . . . Searches Triggered . | . . . . . . . . . . . . . . . . . Construction Impeded 3 | . . . . 1 . . . . . . 2 . . . . . Haulers Reinforced 1 | . . . . . . . . . . . . . 1 . . . Active Scanning Responses . | . . . . . . . . . . . . . . . . . Cargo Convoy Interrupts . | . . . . . . . . . . . . . . . . . Stealth | -11 -10 -9 -9 -8 -8 -8 -7 -7 -6 -5 -5 -5 -4 -3 -2 -1 --------- Run | Yrd Mat Mat Sto Mat Gar Mat Fac Gar Fac Fac Ext Cet Fac Res Res Acc Distress Signals 22 | . . . 3 1 . . . . . 2 1 2 4 4 4 1 Communications Jammed 12 | . . . . . . . . . . . . . . . . 12 Distress Signals 12 | . . . . . . . . . . . . . . . . 12 Times Spotted 342 | . 5 4 8 24 34 16 13 33 8 18 25 10 44 28 27 45 Peak Tracking Total 11 | . 1 2 3 4 6 5 3 5 3 7 4 5 7 9 11 4 Tactical Retreats 13 | . 1 1 1 . 4 . . . . . . . 2 2 1 1 Traps | -11 -10 -9 -9 -8 -8 -8 -7 -7 -6 -5 -5 -5 -4 -3 -2 -1 ------- Run | Yrd Mat Mat Sto Mat Gar Mat Fac Gar Fac Fac Ext Cet Fac Res Res Acc Traps Triggered 15 | . 1 . . 1 1 . . 6 . . 1 . . . 2 3 Indirectly . | . . . . . . . . . . . . . . . . . Trap Hack Attempts . | . . . . . . . . . . . . . . . . . Triggered . | . . . . . . . . . . . . . . . . . Disarmed . | . . . . . . . . . . . . . . . . . Reprogrammed . | . . . . . . . . . . . . . . . . . Reused . | . . . . . . . . . . . . . . . . . Traps Extracted . | . . . . . . . . . . . . . . . . . Installed . | . . . . . . . . . . . . . . . . . Triggered . | . . . . . . . . . . . . . . . . . Machines | -11 -10 -9 -9 -8 -8 -8 -7 -7 -6 -5 -5 -5 -4 -3 -2 -1 ---------- Run | Yrd Mat Mat Sto Mat Gar Mat Fac Gar Fac Fac Ext Cet Fac Res Res Acc Machines Disabled 33 | . . . 3 1 3 1 . 5 . 1 1 . 1 2 7 8 Max in Single Turn 1 | . . . 1 1 1 1 . 1 . 1 1 . 1 1 1 1 Garrison Access 1 | . . . . . . . . . . . . . . 1 . . Garrison Relay 8 | . . . . . 3 . . 5 . . . . . . . . Machines Repaired . | . . . . . . . . . . . . . . . . . Machines Dismantled 2 | . . . . . . . . . . . . . . . . 2 Machines Sabotaged . | . . . . . . . . . . . . . . . . . Overloaded Fab Kills . | . . . . . . . . . . . . . . . . . Hacking | -11 -10 -9 -9 -8 -8 -8 -7 -7 -6 -5 -5 -5 -4 -3 -2 -1 --------- Run | Yrd Mat Mat Sto Mat Gar Mat Fac Gar Fac Fac Ext Cet Fac Res Res Acc Machines Accessed 58 | . 2 . 4 6 4 4 3 4 . . 7 2 6 4 3 9 Terminals 46 | . 2 . 4 3 4 3 1 4 . . 7 2 4 3 2 7 Fabricators 1 | . . . . . . . . . . . . . . 1 . . Repair Stations 4 | . . . . 1 . 1 . . . . . . 1 . 1 . Recycling Units . | . . . . . . . . . . . . . . . . . Scanalyzers 4 | . . . . 1 . . 1 . . . . . . . . 2 Garrison Access 3 | . . . . 1 . . 1 . . . . . 1 . . . Total Hacks 120 | . 8 . 8 11 9 9 8 5 . . 15 4 14 9 5 15 Successful 38 | . 2 . 6 7 3 1 2 2 . . 5 . 7 2 . 1 Failed 80 | . 5 . 2 3 6 8 6 3 . . 10 4 7 7 5 14 Catastrophic 27 | . 1 . 1 2 . 4 . 1 . . 5 1 3 2 1 6 Database Lockouts 2 | . 1 . . 1 . . . . . . . . . . . . Manual 49 | . 9 . 1 4 . 9 3 . . . 6 . 7 4 4 2 Terminals 102 | . 8 . 8 7 9 8 3 5 . . 15 4 11 8 4 12 Fabricators 1 | . . . . . . . . . . . . . . 1 . . Repair Stations 5 | . . . . 1 . 1 . . . . . . 2 . 1 . Recycling Units . | . . . . . . . . . . . . . . . . . Scanalyzers 9 | . . . . 2 . . 4 . . . . . . . . 3 Garrison Access 3 | . . . . 1 . . 1 . . . . . 1 . . . Terminal Hacks 28 | . 2 . 5 4 3 . . 2 . . 5 . 4 2 . 1 Record 1 | . . . . . . . . . . . . . . 1 . . Part Schematic 1 | . 1 . . . . . . . . . . . . . . . Robot Analysis 2 | . 1 . . 1 . . . . . . . . . . . . Prototype ID Bank 2 | . . . 1 1 . . . . . . . . . . . . Open Door 8 | . . . 1 . 1 . . 1 . . 5 . . . . . Branch Access Points 2 | . . . . . . . . . . . . . 1 1 . . Emergency Access Points 1 | . . . . . 1 . . . . . . . . . . . Scanalyzer Index 1 | . . . 1 . . . . . . . . . . . . . Unreport Threat 3 | . . . 1 1 . . . . . . . . 1 . . . Registered Components 1 | . . . . . . . . . . . . . 1 . . . Zone Layout 4 | . . . 1 1 . . . . . . . . 1 . . 1 Garrison Registry 2 | . . . . . 1 . . 1 . . . . . . . . Fabricator Hacks . | . . . . . . . . . . . . . . . . . Repair Station Hacks 1 | . . . . . . . . . . . . . 1 . . . Scan Component 1 | . . . . . . . . . . . . . 1 . . . Recycling Unit Hacks . | . . . . . . . . . . . . . . . . . Scanalyzer 2 | . . . . 1 . . 1 . . . . . . . . . Retrieve Study 2 | . . . . 1 . . 1 . . . . . . . . . Garrison Access Hacks 2 | . . . . 1 . . 1 . . . . . . . . . Unlock Access 2 | . . . . 1 . . 1 . . . . . . . . . Unauthorized Hacks 5 | . . . 1 1 . 1 . . . . . . 2 . . . Terminals 3 | . . . 1 . . . . . . . . . 2 . . . Botnet 1 | . . . . . . . . . . . . . 1 . . . Operators 2 | . . . 1 . . . . . . . . . 1 . . . Fabricators . | . . . . . . . . . . . . . . . . . Repair Stations 2 | . . . . 1 . 1 . . . . . . . . . . Mechanics 2 | . . . . 1 . 1 . . . . . . . . . . Recycling Units . | . . . . . . . . . . . . . . . . . Scanalyzers . | . . . . . . . . . . . . . . . . . Garrison Access . | . . . . . . . . . . . . . . . . . Data Cores Recovered 2 | . . . . . . 1 . . . . . . . 1 . . Used . | . . . . . . . . . . . . . . . . . Hacking Detections 49 | . 2 . 3 4 3 4 2 2 . . 5 2 6 4 3 9 Full Trace Events 8 | . . . . 1 2 . 2 1 . . 1 . . 1 . . Feedback Events . | . . . . . . . . . . . . . . . . . Feedback Blocked . | . . . . . . . . . . . . . . . . . Robot Schematics Acquired . | . . . . . . . . . . . . . . . . . Robots Built . | . . . . . . . . . . . . . . . . . Authchips . | . . . . . . . . . . . . . . . . . Time . | . . . . . . . . . . . . . . . . . Total Robot Build Rating . | . . . . . . . . . . . . . . . . . Part Schematics Acquired 1 | . 1 . . . . . . . . . . . . . . . Parts Built . | . . . . . . . . . . . . . . . . . Authchips . | . . . . . . . . . . . . . . . . . Time . | . . . . . . . . . . . . . . . . . Total Part Build Rating . | . . . . . . . . . . . . . . . . . Part Studies Acquired 2 | . . . . 1 . . 1 . . . . . . . . . Parts Repaired . | . . . . . . . . . . . . . . . . . Time . | . . . . . . . . . . . . . . . . . Parts Recycled . | . . . . . . . . . . . . . . . . . Recycled Matter . | . . . . . . . . . . . . . . . . . Retrieved Matter . | . . . . . . . . . . . . . . . . . Retrieved Components . | . . . . . . . . . . . . . . . . . Parts Scanalyzed . | . . . . . . . . . . . . . . . . . Part Schematics Acquired . | . . . . . . . . . . . . . . . . . Parts Damaged . | . . . . . . . . . . . . . . . . . Bothacking | -11 -10 -9 -9 -8 -8 -8 -7 -7 -6 -5 -5 -5 -4 -3 -2 -1 ------------ Run | Yrd Mat Mat Sto Mat Gar Mat Fac Gar Fac Fac Ext Cet Fac Res Res Acc Used RIF Installer 2 | . . . . . 1 . . 1 . . . . . . . . Command Fork 1 | . . . . . . . . 1 . . . . . . . . Robots Hacked 32 | . . . . . . 5 4 5 6 9 2 1 . . . . Non-combat 5 | . . . . . . . . . 5 . . . . . . . Combat 27 | . . . . . . 5 4 5 1 9 2 1 . . . . Robot Hacks Applied 34 | . . . . . . 5 4 5 7 10 2 1 . . . . parse_system 3 | . . . . . . . . . 1 1 . 1 . . . . no_distress 1 | . . . . . . . . . 1 . . . . . . . find_chute 2 | . . . . . . . . . 2 . . . . . . . find_recycling 1 | . . . . . . . . . 1 . . . . . . . find_station 1 | . . . . . . . . . 1 . . . . . . . find_garrison 1 | . . . . . . . . . . 1 . . . . . . link_complan 1 | . . . . . . . . . . . 1 . . . . . overwrite_iff 1 | . . . . . . . . . . 1 . . . . . . streamctrl_high 1 | . . . . . . . 1 . . . . . . . . . formatsys_high 22 | . . . . . . 5 3 5 1 7 1 . . . . . Relay Couplers Released 35 | . . . . . 14 . . 19 . . . . . 2 . . Machine Destruction 32 | . . . . . 11 . . 19 . . . . . 2 . . Programmers 3 | . . . . . 3 . . . . . . . . . . . Attached 16 | . . . . . . 5 1 3 1 5 . 1 . . . . Fabnet Peak Effective % . | . . . . . . . . . . . . . . . . . Robots Rewired 15 | . . . . . . . . 4 . . 11 . . . . . Allies Hacked . | . . . . . . . . . . . . . . . . . Hacks Repelled . | . . . . . . . . . . . . . . . . . Allies | -11 -10 -9 -9 -8 -8 -8 -7 -7 -6 -5 -5 -5 -4 -3 -2 -1 -------- Run | Yrd Mat Mat Sto Mat Gar Mat Fac Gar Fac Fac Ext Cet Fac Res Res Acc Total Allies 60 | . . . 10 . 1 5 4 12 1 8 19 . . . . . Largest Group 12 | . . . 10 7 1 5 3 6 5 3 12 5 . . . . Highest-Rated Group 351 | . . . 88 56 31 91 48 125 121 111 351 154 . . . . Highest-Rated Ally 49 | . . . 16 8 31 29 29 32 36 41 49 39 . . . . Total Orders 13 | . . . . . . 6 . 2 . 2 1 2 . . . . STAY 6 | . . . . . . 3 . 1 . 1 . 1 . . . . FOLLOW 6 | . . . . . . 3 . 1 . 1 . 1 . . . . EXPLORE 1 | . . . . . . . . . . . 1 . . . . . Ally Attacks 462 | . . . 65 42 8 42 35 69 20 28 121 32 . . . . Total Damage 7742 | . . . 596 317 151 559 452 1255 486 984 2206 736 . . . . Kills 70 | . . . 11 5 2 7 4 8 4 3 21 5 . . . . Allies Corrupted . | . . . . . . . . . . . . . . . . . Allies Melted . | . . . . . . . . . . . . . . . . . Intel | -11 -10 -9 -9 -8 -8 -8 -7 -7 -6 -5 -5 -5 -4 -3 -2 -1 ------- Run | Yrd Mat Mat Sto Mat Gar Mat Fac Gar Fac Fac Ext Cet Fac Res Res Acc Active Infowar (turns) 10726 | 36 305 134 415 770 1174 294 110 . 309 662 1168 . 842 440 1345 2722 Sensors 6106 | . . . . . . 294 110 . 309 662 1168 . 157 . 1199 2207 Terrain 547 | . . . . 547 . . . . . . . . . . . . Structural 4482 | . . . . . . . . . . . . . 685 440 884 2473 Seismic 2834 | 36 305 134 415 770 1174 . . . . . . . . . . . Jamming 2721 | . . . . . . . . . . . . . . . . 2721 Robot Analysis Total 2 | . 1 . . 1 . . . . . . . . . . . . Derelict Logs Recovered . | . . . . . . . . . . . . . . . . . Drone Launches 3 | . . . . . . . . . . . 3 . . . . . Drone Recoveries . | . . . . . . . . . . . . . . . . . Exploration | -11 -10 -9 -9 -8 -8 -8 -7 -7 -6 -5 -5 -5 -4 -3 -2 -1 ------------- Run | Yrd Mat Mat Sto Mat Gar Mat Fac Gar Fac Fac Ext Cet Fac Res Res Acc Turns Passed 15516 | 119 305 134 415 770 1889 659 229 1960 327 747 1264 463 1595 440 1478 2722 Spaces Moved 7316 | 61 144 52 229 294 948 374 111 974 238 404 692 219 688 222 560 1106 Core 9 | 6 . . . . . . . 3 . . . . . . . . Treads 2829 | . . . 3 249 575 . . . . . . 194 480 . 222 1106 Legs 3555 | 55 144 52 34 . 373 374 111 521 2 404 692 25 208 222 338 . Wheels 923 | . . . 192 45 . . . 450 236 . . . . . . . Hover . | . . . . . . . . . . . . . . . . . Flight . | . . . . . . . . . . . . . . . . . Fastest Speed 50 | 50 120 190 110 125 120 120 120 115 115 110 112 120 140 136 128 148 Average Speed 146 | 113 184 190 136 160 154 120 135 156 115 158 119 155 154 137 139 153 Slowest Speed 750 | 120 190 190 260 225 190 120 190 750 185 265 120 160 280 140 225 173 Overloaded Moves . | . . . . . . . . . . . . . . . . . Propulsion Burnouts . | . . . . . . . . . . . . . . . . . Robots Hopped 1 | . . . . 1 . . . . . . . . . . . . Potential Cave-ins . | . . . . . . . . . . . . . . . . . Cave-ins Triggered . | . . . . . . . . . . . . . . . . . Exploration Rate (%) 33 | 4 36 6 53 43 76 34 4 79 8 9 70 75 18 9 14 29 Regions Visited 16 Branch Regions 3 Pre-discovered Areas . | . . . . . . . . . . . . . . . . . Known Exits Taken 8 | . . . . 1 . 1 1 . 1 1 1 1 . . 1 . Unknown Exits Taken 6 | 1 1 1 1 . . . . . . . . . 1 1 . . Scrap Searched . | . . . . . . . . . . . . . . . . . Spaces Dug 16 | . . . . . . . . . . 5 . . 2 1 1 7 Terrain Destroyed 311 | . . . . 28 69 20 1 9 . 11 5 1 28 4 41 94 Melee . | . . . . . . . . . . . . . . . . . Projectile 128 | . . . . . . 4 1 . . 11 5 1 28 4 9 65 AOE 183 | . . . . 28 69 16 . 9 . . . . . . 32 29 Terrain Rammed . | . . . . . . . . . . . . . . . . . Walls Destroyed . | . . . . . . . . . . . . . . . . . Machines Disabled . | . . . . . . . . . . . . . . . . . Actions | -11 -10 -9 -9 -8 -8 -8 -7 -7 -6 -5 -5 -5 -4 -3 -2 -1 --------- Run | Yrd Mat Mat Sto Mat Gar Mat Fac Gar Fac Fac Ext Cet Fac Res Res Acc Total 10897 | 83 168 64 304 492 1219 560 175 1292 283 471 1057 292 1063 319 1167 1888 Wait 2051 | . 14 . 39 118 121 135 37 63 12 3 171 10 216 45 490 577 Move 7298 | 60 143 51 228 292 946 373 111 973 237 403 691 218 687 221 559 1105 Hop 1 | . . . . 1 . . . . . . . . . . . . Pick Up 90 | 4 1 1 3 8 13 4 1 19 4 4 . 2 6 6 8 6 Fast Attach 114 | 7 . . 5 4 10 2 1 6 . 14 9 8 27 2 7 12 Attach 54 | . . . . 3 6 4 3 12 3 3 . . 3 1 8 8 Detach 9 | . . . 1 2 1 . . . . . . . 3 . 2 . Swap 166 | . 1 . 6 7 15 11 3 17 5 6 11 7 7 4 25 41 Drop 135 | . 1 . 3 5 13 5 . 11 4 5 17 17 13 8 16 17 Fire 659 | 12 8 12 12 50 92 12 13 53 11 33 48 30 101 30 42 100 Melee 57 | . . . 5 2 2 14 5 22 7 . . . . . . . Ram . | . . . . . . . . . . . . . . . . . Kick 2 | . . . . . . . . . . . . . . 2 . . Crush . | . . . . . . . . . . . . . . . . . Escape Stasis 41 | . . . . . . . . 31 . . . . . . 10 . Rewire 198 | . . . 2 . . . 1 85 . . 110 . . . . . Trap . | . . . . . . . . . . . . . . . . . Miscellaneous 22 | . . . . . . . . . . . . . . . . 22 Route ------- -11/Scrapyard -10/Materials -9/Materials -9/Storage -8/Materials -8/Garrison (discovered 3 exits: *Mat x3) -8/Materials -7/Factory -7/Garrison (discovered 3 exits: *Fac x3) -6/Factory -5/Factory -5/Extension (discovered 2 exits: *Fac / *Cet) -5/Cetus (discovered 3 exits: *Fac x2 / [*Arc]) -4/Factory (discovered 3 exits: *Res / Upp x2) -3/Research (discovered 4 exits: *Res / Arm / Tes x2) -2/Research -1/Access To Epsilon Eridani History --------- Turn | Location | Event 7 | -11/Scrapyard | Discovered new exit (range 15) 120 | -11/Scrapyard | Entered Materials 144 | -10/Materials | Central database locked down 309 | -10/Materials | Build established: Mutant 394 | -10/Materials | Discovered new exit (range 16) 425 | -10/Materials | Entered another Materials area 425 | -9/Materials | Evolved 2 slots: Propulsion x1, Utility x1 488 | -9/Materials | Discovered new exit (range 16) 559 | -9/Materials | Entered Storage 594 | -9/Storage | Assisted by bots powering up and referring to "LRC-V3" 898 | -9/Storage | Build established: Commander-Mutant 946 | -9/Storage | Discovered new exit (range 16) 974 | -9/Storage | Entered Materials 974 | -8/Materials | Accompanied by 7 allies 974 | -8/Materials | Evolved 2 slots: Utility x2 1276 | -8/Materials | Central database locked down 1415 | -8/Materials | Lost 5 allies 1555 | -8/Materials | Destroyed 10 combat bots 1678 | -8/Materials | Build established: Mutant 1698 | -8/Materials | Garrison activated, responded to threat 1744 | -8/Materials | Identified exit to Garrison 1744 | -8/Materials | Entered Garrison 1814 | -8/Garrison | Rescued a captive Derelict 1908 | -8/Garrison | Triggered checkpoint 1967 | -8/Garrison | Garrison Relay disabled 2112 | -8/Garrison | Triggered checkpoint 2139 | -8/Garrison | Destroyed 7 combat bots 2188 | -8/Garrison | Garrison Relay disabled 2266 | -8/Garrison | Build established: Scavenger-Mutant 2318 | -8/Garrison | Triggered checkpoint 2356 | -8/Garrison | Discovered new exit (range 11) 2526 | -8/Garrison | Installed Relay Interface Framework 2566 | -8/Garrison | Triggered checkpoint 2602 | -8/Garrison | Garrison Relay disabled 2752 | -8/Garrison | Discovered new exit (range 14) 2954 | -8/Garrison | Lost 3 parts (1p1n1u) 3027 | -8/Garrison | Core integrity fell below 50% 3069 | -8/Garrison | Lost 5 parts (3n1u1w) 3386 | -8/Garrison | Discovered new exit (range 24) 3386 | -8/Garrison | Discovered new exit (range 38) 3386 | -8/Garrison | Discovered new exit (range 81) 3633 | -8/Garrison | Entered Materials 4016 | -8/Materials | Build established: Bothacker-Mutant 4033 | -8/Materials | First assault squad dispatched 4254 | -8/Materials | Discovered new exit (range 7) 4261 | -8/Materials | Identified exit to Factory 4292 | -8/Materials | Entered Factory 4292 | -7/Factory | Accompanied by 2 allies 4292 | -7/Factory | Evolved 2 slots: Utility x2 4521 | -7/Factory | Identified exit to Garrison 4521 | -7/Factory | Entered Garrison 4585 | -7/Garrison | Triggered checkpoint 4617 | -7/Garrison | Expanded RIF knowledge: Command Fork 4653 | -7/Garrison | Garrison Relay disabled 4760 | -7/Garrison | P-60 Hacker assimilated allied Guardian 4a 4800 | -7/Garrison | Lost 3 parts (2n1u) 4915 | -7/Garrison | Triggered checkpoint 4945 | -7/Garrison | Triggered checkpoint 5049 | -7/Garrison | Triggered checkpoint 5124 | -7/Garrison | Garrison Relay disabled 5184 | -7/Garrison | Discovered new exit (range 11) 5297 | -7/Garrison | Triggered checkpoint 5375 | -7/Garrison | Triggered checkpoint 5410 | -7/Garrison | Garrison Relay disabled 5533 | -7/Garrison | Discovered new exit (range 14) 5577 | -7/Garrison | Triggered checkpoint 5631 | -7/Garrison | Triggered checkpoint 5645 | -7/Garrison | Garrison Relay disabled 5718 | -7/Garrison | Lost 9 parts (1p3n1u4w) 6151 | -7/Garrison | Triggered checkpoint 6152 | -7/Garrison | Discovered new exit (range 50) 6152 | -7/Garrison | Discovered new exit (range 23) 6152 | -7/Garrison | Discovered new exit (range 47) 6172 | -7/Garrison | Garrison Relay disabled 6425 | -7/Garrison | Rescued a captive Derelict 6470 | -7/Garrison | Identified exit to Factory 6481 | -7/Garrison | Entered Factory 6481 | -6/Factory | Accompanied by 5 allies 6481 | -6/Factory | Evolved 2 slots: Power x1, Propulsion x1 6781 | -6/Factory | Discovered new exit (range 16) 6804 | -6/Factory | Identified exit to Factory 6808 | -6/Factory | Entered another Factory area 6808 | -5/Factory | Accompanied by 1 ally 6808 | -5/Factory | Evolved 2 slots: Propulsion x1, Utility x1 6826 | -5/Factory | Lost 4 allies 6836 | -5/Factory | Lost 5 parts (1p2n1u1w) 7544 | -5/Factory | Discovered new exit (range 11) 7554 | -5/Factory | Identified exit to Extension 7555 | -5/Factory | Entered Extension 7828 | -5/Extension | Build established: Mutant 7942 | -5/Extension | Rescued a captive Derelict 7950 | -5/Extension | Rescued a captive Derelict 7952 | -5/Extension | Rescued a captive Derelict 7953 | -5/Extension | Rescued a captive Derelict 7984 | -5/Extension | Rescued a captive Derelict 8059 | -5/Extension | Rescued a captive Derelict 8199 | -5/Extension | Build established: Commander-Mutant 8507 | -5/Extension | Spotted B-75 Beast 8534 | -5/Extension | Allies destroyed B-75 Beast 8537 | -5/Extension | Spotted B-75 Beast 8548 | -5/Extension | Allies destroyed B-75 Beast 8590 | -5/Extension | Lost 9 allies 8595 | -5/Extension | Rescued a captive Derelict 8597 | -5/Extension | Rescued a captive Derelict 8777 | -5/Extension | Discovered new exit (range 16) 8777 | -5/Extension | Discovered new exit (range 16) 8810 | -5/Extension | Identified exit to Cetus 8812 | -5/Extension | Identified exit to Factory 8819 | -5/Extension | Entered Cetus 8819 | -5/Cetus | Accompanied by 5 allies 8838 | -5/Cetus | Spotted Cetus Guard 8838 | -5/Cetus | Spotted Cetus Guard 8841 | -5/Cetus | Spotted Cetus Guard 8841 | -5/Cetus | Spotted Cetus Guard 8855 | -5/Cetus | Allies destroyed Cetus Guard 8863 | -5/Cetus | Build established: Scavenger-Mutant 8863 | -5/Cetus | Destroyed Cetus Guard 8865 | -5/Cetus | Allies destroyed Cetus Guard 8869 | -5/Cetus | Allies destroyed Cetus Guard 8964 | -5/Cetus | Discovered exit to Factory (range 15) 9116 | -5/Cetus | Discovered new exit (range 15) 9149 | -5/Cetus | Spotted Cetus Guard 9150 | -5/Cetus | Spotted Cetus Guard 9153 | -5/Cetus | Spotted Cetus Guard 9153 | -5/Cetus | Spotted Cetus Guard 9171 | -5/Cetus | Destroyed Cetus Guard 9180 | -5/Cetus | Destroyed Cetus Guard 9192 | -5/Cetus | Destroyed Cetus Guard 9207 | -5/Cetus | Destroyed Cetus Guard 9222 | -5/Cetus | Discovered exit to Factory (range 16) 9223 | -5/Cetus | Lost 3 allies 9234 | -5/Cetus | Met Revision 17 9282 | -5/Cetus | Entered Factory 9282 | -4/Factory | Evolved 2 slots: Propulsion x1, Weapon x1 9620 | -4/Factory | Build established: Scavenger-Tank 10070 | -4/Factory | Garrison activated, responded to threat 10129 | -4/Factory | Build established: Scavenger-Gunner 10371 | -4/Factory | Garrison activated, responded to threat 10825 | -4/Factory | Build established: Scavenger-Tank 10866 | -4/Factory | Discovered new exit (range 10) 10866 | -4/Factory | Identified exit to Upper Caves 10877 | -4/Factory | Spotted B-86 Titan 10877 | -4/Factory | Entered Research 10877 | -3/Research | Evolved 2 slots: Utility x2 11077 | -3/Research | Revision forces began assault on 0b10 11107 | -3/Research | Identified exit to Armory 11107 | -3/Research | Identified exit to Testing 11110 | -3/Research | Met up with Revision 17++ 11255 | -3/Research | Discovered new exit (range 13) 11317 | -3/Research | Entered another Research area 11317 | -2/Research | Evolved 2 slots: Power x1, Weapon x1 11903 | -2/Research | Found Fusion Bomb Launcher 11943 | -2/Research | Destroyed 9 combat bots 12047 | -2/Research | System corruption reached 10% 12541 | -2/Research | Build established: Hacker-Tank 12781 | -2/Research | Discovered new exit (range 10) 12794 | -2/Research | Identified exit to Access 12795 | -2/Research | Entered Access 12795 | -1/Access | Evolved 2 slots: Utility x2 13083 | -1/Access | Build established: Scavenger-Tank 14582 | -1/Access | System corruption reached 10% 14714 | -1/Access | Garrison activated, responded to threat 15512 | -1/Access | Discovered new exit (range 4) 15515 | -1/Access | Identified exit to Surface 15517 | *** | Escaped! Last Messages --------------- 15464_ Dismantling Sealed Barrier with Imp. Plasma Cutter. 15468_ System corrupted: Heat flow error (+138). 15468_ Dismantling Sealed Barrier with Imp. Plasma Cutter. 15491_ System corrupted: Energy discharge (-185). 15492_ Dismantling Sealed Barrier with Imp. Plasma Cutter. 15494_ Sealed Barrier dismantled. 15502_ Dismantling Main Access Shell with Imp. Plasma Cutter. 15512_ System corrupted: Energy discharge (-153). 15512_ Dismantling Main Access Shell with Imp. Plasma Cutter. 15512_ Main Access Shell dismantled. 15512_ EXIT=FOUND 15515_ EXIT=IDENTIFIED: SURFACE [Achievement: 30k Club] Map ----- +----------------------------------------------------+ | ?????????????????????????????????????????????????? | | ?????????????????????????????????????????????????? | | ?????????????????????????????????????????????????? | | ?????????????????????????????????????????????????? | | ?????????????????????????????????????????????????? | | ?????????????????????????????????????????????????? | | ?????????????????????????????????????????????????? | | ?????????????????????????????????????????????????? | | ????????????????????????????????????????????????? | | ????????????????????????????????????????????????? | | ????????????????????????????????????????????????? | | ????????????????????????????????????????????????? | | ????????## ?????????????????????????????????????? | | ????????## ????????????????????????????????????? | | #????????## ????????????????????????????????????? | | #????????## ????????????????????????????????????? | | #????????## ##??????????????????????????????????? | | #????????## ##??????????????????????????????????? | | #????????## w##################??????????????????? | | ##???????## #######"##########??????????????????? | | ##???????## """T"""" "??????????????????? | | ##???????## """ """" ???????????????????????? | | ##???????##A p """"""????????????????????? | | ##???????## "????????????????????? | | ##???????## "" "????????????????????? | | ##???????## " @" "????????????????????? | | ##???????## " " "????????????????????? | | ##???????## " """"""????????????????????? | | ##???????## " ?????????????????????????? | | ##???????## " ??????????????????????? | | ##???????## #######"######??????????????????????? | | ##???????## ###############?????????????????????? | | ##???????## ###############?????????????????????? | | ##???????## # !! ##?????????????????????? | | ##???????## # = ##?????????????????????? | | #????????## + ##?????????????????????? | | #????????## # ##?????????????????????? | | #????????## # ##?????????????????????? | | #????????## # ##?????????????????????? | | #????????## # ##?????????????????????? | | #????????## # ##?????????????????????? | | #????????## # ##?????????????????????? | | #????????## # ##?????????????????????? | | #????????## # ##?????????????????????? | | ????????? # ##?????????????????????? | | ##+############?????????????????????? | | ####+##+####### ############?????????????????????? | | #### ### ##???????????????????????????????? | | ??## ### ##???????????????????????????????? | | #?## " + ##???????????????????????????????? | +----------------------------------------------------+ Best States ------------- Heat Dissipation 128 Coolant Potential 80 Energy Generation 57 Energy Capacity 640 Matter Stores 300 Matter Capacity 300 Sight Range 16 Robot Scan Range 16 Terrain Scan Range 16 Terrain Scan Density 85 Jamming Range 16 Base Temperature (-) 200 Armor Coverage 900 Resistance: KI 20 Resistance: TH 30 Power Shielding 66 Point Defense Rating 160 Weapon Cycling 20 Evasion (%) 70 Targeting Accuracy 6 Target Analysis 9 Core Analysis 6 Armor Integrity Analysis 30 Recoil Reduction 6 Particle Charging 20 Kinecelleration 40 Salvage Targeting 1 Offensive Hacking 10 Defensive Hacking 10 Relay Coupler Types 3 Relay Coupler Value 63 Authchip Count 3 Item Schematics ----------------- Hcp. Storage Unit | -10/Materials | Hacked Robot Schematics ------------------ None Fabricated ------------ Nothing Repaired ---------- Nothing Studied --------- Flak Cannon | -8/Materials | Hacked Imp. Datajack | -7/Factory | Hacked Alien Tech Used ----------------- None Achievements -------------- 30k Club Origins Challenges ------------ None Game ------ Seed SurgeAblativeArmor Manual? 0 Play Time 02:56:03 Cumulative 245.4 hours Start 2026.07.29 @ 17:01:51 End 2026.08.03 @ 22:45:04 Sessions 15 Manual Loads 0 Difficulty Rogue Special Mode None Game No. 325 Rogue 325 Adventurer 0 Explorer 0 Win Type 0 Total 4 Types 3/0/0/1/0/0/0/0/0/0 Lore% 78 Gallery% 64 Achievement% 52 Wizard Run 0 Options --------- Layout 2 ASCII 0 Keyboard 0 Movement Mouse Keybinds 0 Fullscreen 1 Font 24/Smallcaps Map View 50x44 Zoom Use 0% Tactical HUD 1 Map Filters NONE Filters NONE Steam 1 RUN: fc7e100d-7601-40d0-baa6-fe0e2a44c01a